bitfinex/quotes_BTCUSD_20260126
["timestamp","ask_amount","ask_price","bid_price","bid_amount"]
[1769407027983,0.00013995,87874.0,87860.0,0.01138174]
[1769407028206,0.00013995,87874.0,87865.0,0.29267812]
[1769407028428,0.0001326,87882.0,87873.0,0.90880044]
[1769407028610,6.63e-05,87882.0,87875.0,0.29267812]
[1769407028839,6.63e-05,87882.0,87874.0,0.90993842]
[1769407028840,6.63e-05,87882.0,87876.0,0.29381607]
[1769407029043,6.63e-05,87882.0,87876.0,0.29267812]
[1769407030219,6.63e-05,87882.0,87869.0,0.90880044]
[1769407030422,6.63e-05,87882.0,87870.0,0.29267812]
[1769407031740,6.63e-05,87882.0,87870.0,0.30405856]
[1769407031971,6.63e-05,87882.0,87871.0,0.01138031]
[1769407032177,6.63e-05,87882.0,87872.0,0.29267812]
[1769407032380,6.63e-05,87882.0,87872.0,0.3040583]
[1769407033074,0.29474338,87895.0,87872.0,0.3040583]
[1769407033075,1.0036849,87898.0,87879.0,0.90880044]
[1769407033279,1.0036849,87898.0,87882.0,0.29267812]
[1769407033495,1.0036849,87898.0,87883.0,0.29267812]
[1769407035836,0.8288049,87898.0,87883.0,0.29267812]
[1769407037929,0.0012393,87897.0,87883.0,0.29267812]
[1769407038258,0.0002393,87897.0,87883.0,0.29267812]
[1769407041061,0.0002393,87897.0,87884.0,0.8975226]
[1769407041262,0.0002393,87897.0,87885.0,0.29836243]
[1769407041512,0.0002393,87897.0,87887.0,0.29836243]
[1769407041717,0.0002393,87897.0,87889.0,0.29836243]
[1769407042344,0.0002393,87897.0,87881.0,0.29836243]
[1769407042548,0.82192651,87897.0,87881.0,0.29836243]
[1769407042737,0.01484573,87896.0,87881.0,0.29836243]
[1769407043145,0.83653294,87896.0,87881.0,0.29836243]
[1769407043318,0.82168721,87896.0,87881.0,0.29836243]
[1769407043517,0.01484573,87895.0,87881.0,0.29836243]
[1769407045346,0.01484573,87895.0,87878.0,0.17488]
[1769407045347,0.82168721,87894.0,87878.0,0.17488]
[1769407045518,0.82168721,87892.0,87878.0,0.17488]
[1769407045722,0.29619765,87895.0,87878.0,0.17488]
[1769407045723,0.83653294,87891.0,87878.0,0.17488]
[1769407045921,0.82168721,87891.0,87875.0,0.29836243]
[1769407046181,0.01484573,87890.0,87875.0,0.29836243]
[1769407048850,0.82168721,87889.0,87875.0,0.29836243]
[1769407051322,0.82168721,87889.0,87873.0,0.01138005]
[1769407051323,0.17488,87892.0,87873.0,0.01138005]
[1769407051528,0.01484573,87891.0,87880.0,0.88614397]
[1769407051744,0.01484573,87891.0,87881.0,0.29836243]
[1769407059139,0.0002393,87897.0,87885.0,0.28857931]
[1769407059140,0.17484,87895.0,87885.0,0.28857931]
[1769407059255,0.17484,87895.0,87886.0,0.30342588]
[1769407059463,0.17484,87895.0,87886.0,0.28857931]
[1769407059657,0.0002393,87897.0,87886.0,0.28857931]
[1769407060319,0.0002393,87897.0,87890.0,0.28857931]
[1769407060526,0.0002393,87897.0,87893.0,0.83684246]
[1769407060723,0.0002393,87897.0,87894.0,0.28857931]
[1769407061736,0.85896347,87910.0,87894.0,0.28857931]
[1769407061941,0.85910352,87910.0,87894.0,0.28857931]
[1769407063486,0.86010352,87910.0,87894.0,0.28857931]
[1769407063900,0.30456564,87910.0,87894.0,0.28857931]
[1769407064101,0.85896347,87909.0,87894.0,0.28857931]
[1769407065100,0.30342559,87909.0,87889.0,0.28857931]
[1769407065303,0.85896347,87908.0,87889.0,0.28857931]
[1769407065889,1.16238906,87908.0,87889.0,0.28857931]
[1769407066099,0.85896347,87907.0,87889.0,0.28857931]
[1769407067611,0.85896347,87907.0,87890.0,0.01224337]
[1769407068236,0.30342559,87906.0,87881.0,0.17484]
[1769407068563,0.85896347,87901.0,87882.0,0.28857931]
[1769407071709,0.85896347,87900.0,87882.0,0.28857931]
[1769407071946,0.62935109,87900.0,87882.0,0.28857931]
[1769407074833,0.62935109,87900.0,87883.0,0.28857931]
[1769407078145,0.62935109,87900.0,87883.0,0.83684246]
[1769407078350,0.62935109,87900.0,87884.0,0.28857931]
[1769407078773,0.39586561,87900.0,87884.0,0.28857931]
[1769407082413,0.40049659,87898.0,87881.0,0.17484]
[1769407082619,0.40049659,87896.0,87881.0,0.17484]
[1769407092167,0.40049659,87895.0,87881.0,0.17484]
[1769407092702,0.40049659,87894.0,87881.0,0.17484]
[1769407096193,0.40049659,87899.0,87882.0,0.01259733]
[1769407096761,0.40049659,87899.0,87881.0,0.46907357]
[1769407097554,0.40049659,87899.0,87882.0,0.01233515]
[1769407098464,0.40049659,87899.0,87882.0,0.3020904]
[1769407098657,0.40049659,87899.0,87882.0,0.28975525]
[1769407099949,0.30161879,87909.0,87884.0,0.28975525]
[1769407100184,0.51437716,87908.0,87887.0,0.84209934]
[1769407100393,0.40049658,87907.0,87888.0,0.30322752]
[1769407100593,0.40049658,87907.0,87888.0,0.28975525]
[1769407100746,0.30161879,87907.0,87888.0,0.28975525]
[1769407101076,0.40049658,87906.0,87887.0,0.84209934]
[1769407101272,0.40049658,87906.0,87888.0,0.30429438]
[1769407101492,0.40049658,87906.0,87888.0,0.28975525]
[1769407101693,0.40049658,87906.0,87889.0,0.01453897]
[1769407102576,0.40049658,87906.0,87891.0,0.28975525]
[1769407102757,0.001,87907.0,87886.0,1.13185459]
[1769407102967,0.001,87907.0,87885.0,0.0113785]
[1769407102968,0.00014005,87910.0,87888.0,0.28975525]
[1769407103171,0.40049658,87907.0,87888.0,0.28975525]
[1769407103371,0.40049658,87905.0,87888.0,0.28975525]
[1769407104161,0.00014005,87910.0,87881.0,0.17484]
[1769407104162,0.30161879,87904.0,87881.0,0.17484]
[1769407104359,0.40049658,87901.0,87881.0,0.17484]
[1769407104561,0.40049658,87899.0,87881.0,0.17484]
[1769407104971,0.30161879,87899.0,87881.0,0.17484]
[1769407105219,0.30161879,87898.0,87881.0,0.17484]
[1769407105407,0.40049658,87897.0,87881.0,0.17484]
[1769407106518,0.40049658,87897.0,87871.0,0.0001258]
[1769407106519,0.00997393,87881.0,87871.0,0.0001258]
[1769407106698,0.40049658,87880.0,87871.0,0.0001258]
[1769407107587,0.40049658,87879.0,87871.0,0.0001258]
[1769407108364,0.1272,87895.0,87871.0,0.28988105]
[1769407108547,0.01137695,87897.0,87873.0,0.28975525]
[1769407108733,0.40049658,87893.0,87873.0,0.28975525]
[1769407108933,0.40049658,87891.0,87873.0,0.28975525]
[1769407109140,0.40049658,87890.0,87873.0,0.28975525]
[1769407110396,0.40049658,87889.0,87873.0,0.28975525]
[1769407111159,0.09790481,87889.0,87873.0,0.28975525]
[1769407111386,0.30261879,87890.0,87876.0,0.01137967]
[1769407111387,0.001,87890.0,87876.0,0.01137967]
[1769407111588,0.001,87890.0,87879.0,0.84209934]
[1769407111790,0.001,87890.0,87880.0,0.28975525]
[1769407111995,0.10093073,87898.0,87880.0,0.28975525]
[1769407112171,0.10093073,87897.0,87880.0,0.28975525]
[1769407112364,0.001,87889.0,87873.0,0.3011353]
[1769407112571,0.001,87889.0,87875.0,0.28975525]
[1769407112799,0.29248126,87896.0,87876.0,0.30179702]
[1769407112977,0.29248126,87896.0,87876.0,0.28967433]
[1769407112978,0.10093073,87895.0,87876.0,0.28967433]
[1769407113418,0.10093073,87895.0,87877.0,0.88019699]
[1769407113640,0.10093073,87895.0,87878.0,0.01212222]
[1769407113844,0.10093073,87895.0,87878.0,0.02275882]
[1769407115859,0.10093073,87894.0,87878.0,0.02275882]
[1769407116093,0.2880775,87894.0,87878.0,0.02275882]
[1769407116298,0.10093073,87893.0,87878.0,0.02275882]
[1769407116498,0.10093073,87893.0,87877.0,0.31779378]
[1769407117422,0.10093073,87893.0,87878.0,0.02275882]
[1769407118782,0.10193073,87893.0,87878.0,0.02275882]
[1769407118961,0.001,87893.0,87878.0,0.02275882]
[1769407119175,0.10093073,87895.0,87873.0,0.02276011]
[1769407119377,0.10093073,87893.0,87873.0,0.34055389]
[1769407119601,0.001,87893.0,87875.0,0.31779378]
[1769407119803,0.001,87893.0,87878.0,0.88019699]
[1769407120001,0.00014005,87897.0,87881.0,0.31779378]
[1769407120401,0.001,87895.0,87881.0,0.31779378]
[1769407121514,0.001,87895.0,87881.0,0.88019699]
[1769407121714,0.00014005,87897.0,87884.0,0.31779378]
[1769407121947,0.00014005,87897.0,87883.0,0.88019699]
[1769407122113,0.00014005,87897.0,87883.0,1.19799077]
[1769407124139,0.00014005,87897.0,87883.0,1.19818017]
[1769407127914,0.00014005,87897.0,87883.0,0.88038639]
[1769407128119,0.00014005,87897.0,87884.0,0.31779378]
[1769407129146,0.00014005,87897.0,87884.0,1.19818017]
[1769407130326,0.00014005,87897.0,87884.0,0.31798318]
[1769407130482,0.00014005,87897.0,87885.0,0.31779378]
[1769407130899,0.00014005,87897.0,87885.0,0.88019699]
[1769407131103,0.00014005,87897.0,87885.0,1.19818017]
[1769407132231,0.00014005,87897.0,87886.0,0.31779378]
[1769407134993,0.2880775,87907.0,87886.0,0.31779378]
[1769407134994,0.21634246,87907.0,87886.0,0.31779378]
[1769407135215,0.21634246,87907.0,87885.0,0.88038639]
[1769407135216,0.00100931,87904.0,87885.0,0.0001894]
[1769407135423,0.00100931,87900.0,87885.0,0.0001894]
[1769407135626,0.0113763,87902.0,87885.0,0.0001894]
[1769407135627,0.2880775,87897.0,87885.0,0.0001894]
[1769407135747,0.00100931,87896.0,87885.0,0.0001894]
[1769407137652,0.00100931,87895.0,87885.0,0.0001894]
[1769407137846,0.00100931,87894.0,87885.0,0.0001894]
[1769407141329,0.00100931,87894.0,87882.0,0.17484]
[1769407141330,0.00200931,87894.0,87882.0,0.17484]
[1769407142300,0.00100931,87894.0,87882.0,0.17484]
[1769407142446,0.00200931,87894.0,87882.0,0.17484]
[1769407142685,0.001,87894.0,87882.0,0.17484]
[1769407144323,0.001,87894.0,87885.0,0.87045234]
[1769407144523,0.001,87894.0,87886.0,0.30366135]
[1769407145277,0.31181705,87906.0,87886.0,0.30366135]
[1769407145495,0.00100931,87904.0,87886.0,0.30366135]
[1769407145693,0.1138644,87903.0,87886.0,0.30366135]
[1769407145917,0.1138644,87902.0,87886.0,0.30366135]
[1769407146115,0.1138644,87901.0,87886.0,0.30366135]
[1769407146314,0.00100931,87904.0,87886.0,0.30366135]
[1769407146467,0.11386596,87903.0,87886.0,0.30366135]
[1769407146680,0.11386596,87902.0,87886.0,0.30366135]
[1769407146891,0.11386596,87901.0,87886.0,0.30366135]
[1769407147091,0.00100931,87904.0,87886.0,0.30366135]
[1769407147315,0.11386651,87903.0,87886.0,0.30366135]
[1769407147543,0.11386651,87902.0,87886.0,0.30366135]
[1769407147754,0.00100931,87904.0,87886.0,0.30366135]
[1769407147755,0.11386651,87901.0,87886.0,0.30366135]
[1769407147919,0.00100931,87904.0,87886.0,0.30366135]
[1769407148124,0.11386799,87903.0,87886.0,0.30366135]
[1769407148328,0.11386799,87902.0,87886.0,0.30366135]
[1769407148523,0.11386799,87901.0,87886.0,0.30366135]
[1769407148777,0.11386799,87900.0,87886.0,0.30366135]
[1769407148983,0.00100931,87904.0,87886.0,0.30366135]
[1769407149199,0.00100931,87904.0,87888.0,0.30366135]
[1769407149200,0.11386995,87903.0,87888.0,0.30366135]
[1769407149410,0.11386995,87902.0,87888.0,0.30366135]
[1769407149609,0.11386995,87901.0,87888.0,0.30366135]
[1769407149849,0.001,87903.0,87888.0,0.30366135]
[1769407150054,0.11386972,87902.0,87888.0,0.30366135]
[1769407150258,0.11386972,87901.0,87888.0,0.30366135]
[1769407150430,0.00100931,87904.0,87888.0,0.30366135]
[1769407150656,0.11386959,87903.0,87888.0,0.30366135]
[1769407150855,0.11386959,87902.0,87888.0,0.30366135]
[1769407151097,0.11387074,87901.0,87888.0,0.30366135]
[1769407151300,0.00200931,87904.0,87888.0,0.30366135]
[1769407151503,0.11386972,87903.0,87888.0,0.30366135]
[1769407151684,0.11386972,87902.0,87888.0,0.30366135]
[1769407151886,0.11386972,87901.0,87888.0,0.30366135]
[1769407152096,0.001,87903.0,87888.0,0.30366135]
[1769407152273,0.11387088,87902.0,87888.0,0.30366135]
[1769407152497,0.11387088,87901.0,87888.0,0.30366135]
[1769407152711,0.001,87903.0,87888.0,0.30366135]
[1769407152852,0.11387033,87902.0,87888.0,0.30366135]
[1769407153064,0.001,87903.0,87889.0,0.87045234]
[1769407153266,0.001,87903.0,87890.0,0.30366135]
[1769407153465,6.901e-05,87907.0,87890.0,0.30366135]
[1769407153697,0.11386668,87906.0,87890.0,0.30366135]
[1769407153888,0.11386668,87905.0,87890.0,0.30366135]
[1769407154186,0.11386668,87904.0,87890.0,0.30366135]
[1769407154401,0.001,87902.0,87890.0,0.30366135]
[1769407154933,0.00100931,87906.0,87890.0,0.30366135]
[1769407155137,0.11587358,87905.0,87890.0,0.30366135]
[1769407155331,0.00200931,87905.0,87890.0,0.30366135]
[1769407155518,0.00100931,87904.0,87890.0,0.30366135]
[1769407157108,0.001,87902.0,87890.0,0.30366135]
[1769407157305,0.00100931,87904.0,87890.0,0.30366135]
[1769407157731,0.00200931,87904.0,87890.0,0.30366135]
[1769407158121,0.00100931,87904.0,87890.0,0.30366135]
[1769407158528,0.00200931,87904.0,87890.0,0.30366135]
[1769407160172,0.31188606,87907.0,87890.0,0.30366135]
[1769407160458,0.11385105,87906.0,87890.0,0.85438547]
[1769407160605,0.001,87904.0,87890.0,1.14167806]
[1769407160817,0.31188606,87907.0,87891.0,0.28729259]
[1769407161037,0.31188606,87907.0,87894.0,0.85438547]
[1769407161038,6.901e-05,87907.0,87894.0,0.85438547]
[1769407161187,6.901e-05,87907.0,87896.0,1.14167806]
[1769407161568,0.00106901,87907.0,87896.0,1.14167806]
[1769407161925,6.901e-05,87907.0,87896.0,0.28729259]
[1769407162309,0.00106901,87907.0,87896.0,0.28729259]
[1769407163532,6.901e-05,87907.0,87896.0,0.28729259]
[1769407164042,0.00106901,87907.0,87896.0,0.28729259]
[1769407164493,6.901e-05,87907.0,87896.0,0.28729259]
[1769407164695,0.00106901,87907.0,87896.0,0.28729259]
[1769407167622,0.00106901,87907.0,87891.0,1.14167806]
[1769407167821,0.00106901,87907.0,87892.0,0.28729259]
[1769407168523,6.901e-05,87907.0,87892.0,0.28729259]
[1769407169717,6.901e-05,87907.0,87882.0,0.17484]
[1769407169718,0.00100931,87906.0,87887.0,0.28729259]
[1769407170329,0.29906275,87906.0,87887.0,0.28729259]
[1769407170454,0.00100931,87905.0,87887.0,0.28729259]
[1769407170867,0.13127954,87906.0,87887.0,0.28729259]
[1769407171486,0.001,87905.0,87887.0,0.28729259]
[1769407172860,0.01237591,87905.0,87887.0,0.28729259]
[1769407173104,0.01237591,87905.0,87877.0,1.02922547]
[1769407173105,0.23019007,87900.0,87877.0,1.02922547]
[1769407173321,0.24156663,87900.0,87879.0,0.80338618]
[1769407173542,0.23019007,87900.0,87881.0,0.29516966]
[1769407173767,0.24156663,87900.0,87881.0,0.29516966]
[1769407174403,0.23019007,87900.0,87881.0,0.29516966]
[1769407174614,0.24256663,87900.0,87881.0,0.29516966]
[1769407174839,0.01137669,87899.0,87881.0,0.29516966]
[1769407175057,0.24156663,87900.0,87881.0,0.29516966]
[1769407175272,0.03780813,87899.0,87881.0,0.29516966]
[1769407175688,0.23119007,87900.0,87881.0,0.29516966]
[1769407175929,0.23119007,87900.0,87882.0,0.29516966]
[1769407177262,0.23019007,87900.0,87882.0,0.29516966]
[1769407177627,0.23119007,87900.0,87882.0,0.29516966]
[1769407178133,0.23019007,87900.0,87882.0,0.29516966]
[1769407178334,0.23119007,87900.0,87882.0,0.29516966]
[1769407178949,0.23019007,87900.0,87882.0,0.29516966]
[1769407179198,0.23119007,87900.0,87882.0,0.29516966]
[1769407180339,0.23019007,87900.0,87882.0,0.29516966]
[1769407180786,0.23119007,87900.0,87884.0,0.29516966]
[1769407180993,0.001,87900.0,87885.0,0.30689782]
[1769407181215,0.05689532,87881.0,87874.0,0.0001739]
[1769407181421,0.0113785,87885.0,87874.0,0.0001739]
[1769407181422,0.00997393,87885.0,87874.0,0.0001739]
[1769407181624,0.01137954,87877.0,87874.0,0.0001739]
[1769407181825,0.24907518,87879.0,87874.0,0.0001739]
[1769407182252,0.2376959,87879.0,87874.0,0.0001739]
[1769407182461,0.01137915,87880.0,87874.0,0.0001739]
[1769407182663,0.23816516,87877.0,87874.0,0.0001739]
[1769407182845,0.23825537,87877.0,87874.0,0.0001739]
[1769407184647,0.23825537,87877.0,87861.0,0.29516966]
[1769407184648,0.23825537,87877.0,87867.0,8.82e-05]
[1769407184649,9.021e-05,87877.0,87867.0,8.82e-05]
[1769407186298,9.021e-05,87877.0,87850.0,0.52061672]
[1769407186299,9.021e-05,87877.0,87827.0,0.01138602]
[1769407186300,0.05589762,87860.0,87827.0,0.01138602]
[1769407186498,0.05589762,87860.0,87816.0,0.17484]
[1769407186499,0.05589762,87856.0,87830.0,0.29516966]
[1769407186852,0.05589762,87856.0,87835.0,0.80338618]
[1769407186853,0.05589762,87855.0,87835.0,0.80338618]
[1769407187060,0.05589762,87855.0,87837.0,0.29516966]
[1769407187674,0.05599442,87855.0,87837.0,0.29516966]
[1769407188442,0.05699442,87855.0,87837.0,0.29516966]
[1769407189224,0.05699442,87855.0,87838.0,0.29516966]
[1769407189452,0.06837681,87855.0,87838.0,0.29516966]
[1769407189663,0.04518055,87854.0,87838.0,0.29516966]
[1769407190772,0.04527735,87854.0,87839.0,0.29516966]
[1769407190981,9.68e-05,87854.0,87839.0,0.29516966]
[1769407191198,0.05589762,87853.0,87827.0,0.80338618]
[1769407191405,0.05589762,87853.0,87823.0,0.01138653]
[1769407191406,0.05589762,87852.0,87830.0,0.29516966]
[1769407191612,0.05589762,87852.0,87824.0,0.0113864]
[1769407191613,0.05589762,87851.0,87832.0,0.29516966]
[1769407192053,0.05589762,87851.0,87833.0,0.29516966]
[1769407192656,0.05599442,87851.0,87833.0,0.29516966]
[1769407193907,0.05699442,87851.0,87833.0,0.29516966]
[1769407194502,0.06728091,87848.0,87833.0,0.29516966]
[1769407194703,0.05589762,87848.0,87833.0,0.29516966]
[1769407194954,0.06728091,87848.0,87833.0,0.29516966]
[1769407195439,0.05589762,87848.0,87833.0,0.29516966]
[1769407195623,0.05589762,87848.0,87833.0,0.29563621]
[1769407195835,0.04001887,87847.0,87833.0,0.29563621]
[1769407197085,0.04101887,87847.0,87833.0,0.29563621]
[1769407197446,0.05589762,87846.0,87833.0,0.29563621]
[1769407198293,0.22456374,87846.0,87833.0,0.00046655]
[1769407198489,0.05589762,87845.0,87833.0,0.00046655]
[1769407198690,0.04001887,87847.0,87821.0,0.17492]
[1769407198691,0.22456374,87842.0,87821.0,0.17492]
[1769407198832,0.04361227,87844.0,87821.0,0.47022971]
[1769407198833,0.05543574,87840.0,87821.0,0.47022971]
[1769407199038,0.05543574,87840.0,87822.0,0.29516966]
[1769407199467,0.05543574,87840.0,87822.0,0.80338618]
[1769407199697,0.05543574,87840.0,87823.0,0.29516966]
[1769407200125,0.05643574,87840.0,87823.0,0.29516966]
[1769407200328,0.05643574,87840.0,87823.0,0.80338618]
[1769407200480,0.05643574,87840.0,87824.0,0.29516966]
[1769407200679,0.22523987,87846.0,87826.0,0.80338618]
[1769407200903,0.22523987,87846.0,87829.0,0.29516966]
[1769407201258,9.68e-05,87849.0,87823.0,0.001]
[1769407201466,9.68e-05,87849.0,87827.0,0.29516966]
[1769407201621,0.05543574,87855.0,87823.0,0.001]
[1769407201622,0.0002299,87863.0,87841.0,0.80338618]
[1769407201832,0.0002299,87863.0,87844.0,0.29516966]
[1769407202089,0.0002299,87863.0,87847.0,0.80338618]
[1769407202290,0.0002299,87863.0,87850.0,0.80338618]
[1769407202500,0.0002299,87863.0,87845.0,0.01138368]
[1769407202671,0.2447,87873.0,87850.0,0.50908849]
[1769407202888,0.2447,87873.0,87854.0,0.80338618]
[1769407203195,0.2447,87873.0,87859.0,0.30996798]
[1769407203363,0.2447,87873.0,87850.0,0.50908849]
[1769407203364,0.0002299,87877.0,87861.0,0.83753268]
[1769407203564,0.00046675,87873.0,87852.0,0.01138278]
[1769407203950,0.00046675,87873.0,87850.0,0.52047152]
[1769407204135,0.00046675,87873.0,87852.0,0.30996798]
[1769407204349,0.00146675,87873.0,87855.0,0.83753268]
[1769407204548,0.00146675,87873.0,87858.0,0.30996798]
[1769407204789,0.00146675,87873.0,87850.0,0.52047152]
[1769407204790,0.00146675,87873.0,87860.0,0.30996798]
[1769407204991,0.00146675,87873.0,87861.0,0.30996798]
[1769407205172,0.00146675,87873.0,87861.0,0.27578151]
[1769407205595,0.00046675,87873.0,87861.0,0.27578151]
[1769407206019,0.00146675,87873.0,87861.0,0.27578151]
[1769407206443,0.00146675,87873.0,87850.0,0.50908849]
[1769407206444,0.00997393,87861.0,87848.0,0.30996798]
[1769407207600,0.00997393,87861.0,87848.0,0.31096798]
[1769407208887,0.00997393,87861.0,87848.0,0.30996798]
[1769407209093,0.17465153,87865.0,87848.0,0.30996798]
[1769407209293,0.17544972,87865.0,87848.0,0.31096798]
[1769407210014,0.17544972,87865.0,87848.0,0.30996798]
[1769407210211,0.17565153,87865.0,87848.0,0.30996798]
[1769407210393,0.00079819,87864.0,87848.0,0.30996798]
[1769407211564,0.00079819,87864.0,87848.0,1.14750066]
[1769407212167,0.01138174,87860.0,87843.0,0.17492]
[1769407212433,0.18047429,87859.0,87843.0,0.17492]
[1769407212581,0.18047429,87859.0,87841.0,0.30996798]
[1769407212582,0.00079819,87858.0,87841.0,0.30996798]
[1769407212782,0.00079819,87857.0,87841.0,0.30996798]
[1769407213326,0.00079819,87857.0,87843.0,0.001]
[1769407213943,0.00079819,87857.0,87841.0,0.30996798]
[1769407214147,0.03599778,87857.0,87841.0,0.30996798]
[1769407214292,0.19155525,87856.0,87839.0,0.04556]
[1769407214496,0.00079819,87853.0,87839.0,0.04556]
[1769407215450,0.00079819,87852.0,87839.0,0.04556]
[1769407215778,0.02472492,87852.0,87841.0,0.001]
[1769407216124,0.02472492,87852.0,87839.0,0.04556]
[1769407216327,0.01138316,87849.0,87834.0,0.30996798]
[1769407216547,0.00079819,87848.0,87830.0,8.01e-05]
[1769407217204,0.00079819,87848.0,87830.0,0.31004808]
[1769407217440,0.03728974,87847.0,87830.0,0.31004808]
[1769407217640,0.00079819,87846.0,87830.0,0.31004808]
[1769407218845,0.00079819,87846.0,87830.0,0.31018813]
[1769407219213,0.00079819,87846.0,87830.0,0.31118813]
[1769407219637,0.00079819,87846.0,87830.0,0.31018813]
[1769407219846,0.00079819,87846.0,87830.0,0.31118813]
[1769407220056,0.0349924,87846.0,87830.0,0.31118813]
[1769407220376,0.0349924,87846.0,87830.0,0.31018813]
[1769407220578,0.04737595,87846.0,87830.0,0.31018813]
[1769407220784,0.00079819,87845.0,87830.0,0.31018813]
[1769407222271,0.00179819,87845.0,87830.0,0.31018813]
[1769407223222,0.01138381,87844.0,87830.0,0.19168813]
[1769407223422,0.00079819,87842.0,87830.0,0.00014005]
[1769407223562,0.00079819,87842.0,87826.0,0.81777273]
[1769407223764,0.02036054,87840.0,87826.0,0.00013995]
[1769407223988,0.01138407,87842.0,87826.0,0.00013995]
[1769407224191,0.29743947,87841.0,87826.0,0.00013995]
[1769407224391,0.02036054,87840.0,87826.0,0.00013995]
[1769407224565,0.01138446,87839.0,87826.0,0.00013995]
[1769407224939,0.02036054,87838.0,87826.0,0.00013995]
[1769407225216,0.04136291,87838.0,87826.0,0.00013995]
[1769407225979,0.04236291,87838.0,87826.0,0.00013995]
[1769407226181,0.02200237,87838.0,87826.0,0.00013995]
[1769407226580,0.02100237,87838.0,87826.0,0.00013995]
[1769407227042,0.03615701,87837.0,87826.0,0.00013995]
[1769407229224,0.03715701,87837.0,87826.0,0.00013995]
[1769407231726,0.29767403,87836.0,87826.0,0.00013995]
[1769407231930,0.01091104,87835.0,87826.0,0.00013995]
[1769407235811,0.29767403,87836.0,87826.0,0.00013995]
[1769407235959,0.0411282,87835.0,87826.0,0.00013995]
[1769407237327,0.01091104,87829.0,87811.0,0.33211541]
[1769407237525,0.50999167,87830.0,87813.0,0.33211541]
[1769407237739,0.50999167,87830.0,87816.0,0.80139312]
[1769407237938,0.50999167,87830.0,87817.0,0.33211541]
[1769407238301,0.50999167,87830.0,87817.0,1.13350853]
[1769407238644,0.50999167,87830.0,87818.0,0.33211541]
[1769407239050,0.08554665,87829.0,87818.0,0.33211541]
[1769407239245,0.50999167,87830.0,87818.0,0.27509675]
[1769407240237,0.50999167,87830.0,87819.0,0.33211541]
[1769407241289,0.0411282,87835.0,87820.0,0.80139312]
[1769407241454,0.0411282,87835.0,87822.0,0.33211541]
[1769407241657,0.03615701,87837.0,87822.0,0.33211541]
[1769407242408,0.31590333,87839.0,87822.0,0.33211541]
[1769407242742,0.50999167,87832.0,87822.0,0.27509935]
[1769407243337,0.50999167,87832.0,87822.0,0.21808329]
[1769407244566,0.50999167,87832.0,87822.0,0.21908329]
[1769407245795,0.50999167,87832.0,87822.0,0.80239312]
[1769407245968,0.50999167,87832.0,87823.0,0.33211541]
[1769407246186,0.50999167,87832.0,87823.0,0.32931198]
[1769407246381,0.50999167,87832.0,87823.0,0.327443]
[1769407246635,0.50999167,87832.0,87823.0,0.32463944]
[1769407246835,0.31590333,87839.0,87823.0,1.12603256]
[1769407247273,0.11384328,87838.0,87823.0,1.12703256]
[1769407247588,0.31590333,87839.0,87823.0,1.12703256]
[1769407247768,0.11384328,87838.0,87823.0,1.12603256]
[1769407247970,0.31590333,87839.0,87823.0,1.12603256]
[1769407248171,0.11384328,87838.0,87814.0,0.80139312]
[1769407248375,0.001,87839.0,87817.0,0.33211541]
[1769407248554,0.11386079,87838.0,87820.0,0.80139312]
[1769407248763,0.001,87839.0,87823.0,0.33211541]
[1769407249104,0.001,87839.0,87828.0,0.80139312]
[1769407249650,0.50999167,87840.0,87828.0,0.80139312]
[1769407249852,0.001,87838.0,87828.0,0.80139312]
[1769407250522,0.11389072,87837.0,87828.0,0.80139312]
[1769407250703,0.51099167,87840.0,87828.0,0.80139312]
[1769407250887,0.51099167,87840.0,87828.0,1.13350853]
[1769407251254,0.50999167,87840.0,87828.0,1.13350853]
[1769407251469,0.001,87838.0,87828.0,1.13350853]
[1769407251683,0.001,87838.0,87829.0,0.33211541]
[1769407251880,0.001,87838.0,87830.0,1.13350853]
[1769407252084,0.001,87838.0,87831.0,0.74438225]
[1769407252280,0.001,87838.0,87832.0,0.33211541]
[1769407252565,0.001,87838.0,87832.0,0.21809367]
[1769407252780,0.50999167,87840.0,87832.0,0.10407193]
[1769407253123,0.51099167,87840.0,87832.0,0.10407193]
[1769407253566,0.50999167,87840.0,87832.0,0.10407193]
[1769407253937,0.51099167,87840.0,87832.0,0.10407193]
[1769407254361,0.51099167,87840.0,87831.0,0.68737138]
[1769407255232,0.51099167,87840.0,87827.0,0.33211541]
[1769407255541,0.51099167,87840.0,87827.0,1.13350853]
[1769407256082,0.50999167,87840.0,87827.0,1.13350853]
[1769407256275,0.51099167,87840.0,87827.0,0.33211541]
[1769407256442,0.51099167,87840.0,87828.0,0.80139312]
[1769407256645,0.50999167,87840.0,87828.0,0.80139312]
[1769407257055,0.51099167,87840.0,87828.0,0.80139312]
[1769407257259,0.31904434,87840.0,87828.0,0.80139312]
[1769407257708,0.31804434,87840.0,87828.0,0.80139312]
[1769407258226,0.31904434,87840.0,87828.0,0.80139312]
[1769407260110,0.31904434,87840.0,87829.0,0.80139312]
[1769407260895,0.31804434,87840.0,87829.0,0.80139312]
[1769407261335,0.31904434,87840.0,87829.0,0.80139312]
[1769407262536,0.31904434,87840.0,87814.0,0.22775233]
[1769407262537,0.50999167,87850.0,87831.0,0.80139312]
[1769407262736,0.01138187,87859.0,87831.0,0.80139312]
[1769407262737,0.75469167,87860.0,87831.0,0.0113855]
[1769407262960,0.75469167,87860.0,87834.0,0.80139312]
[1769407262961,0.50999167,87860.0,87834.0,0.80139312]
[1769407263189,0.50999167,87850.0,87837.0,1.13350853]
[1769407263391,0.001,87840.0,87838.0,0.76783907]
[1769407263538,0.001,87840.0,87839.0,1.10207135]
[1769407263966,0.50999167,87860.0,87842.0,0.33423228]
[1769407264170,0.50999167,87860.0,87845.0,0.76783907]
[1769407264369,0.50999167,87860.0,87846.0,0.76783907]
[1769407264572,0.51045831,87860.0,87846.0,0.76783907]
[1769407265552,0.51058371,87860.0,87846.0,0.76783907]
[1769407265751,0.52196545,87860.0,87846.0,0.76783907]
[1769407265955,0.011382,87858.0,87845.0,0.33423228]
[1769407266202,0.01138187,87859.0,87845.0,0.33423228]
[1769407266371,0.011382,87858.0,87845.0,0.33423228]
[1769407266787,0.01150727,87859.0,87845.0,0.33423228]
[1769407267457,0.01250727,87859.0,87845.0,0.33423228]
[1769407267645,0.01250727,87859.0,87845.0,0.32516015]
[1769407267802,0.0001254,87859.0,87845.0,0.32516015]
[1769407268200,0.0011254,87859.0,87845.0,0.32516015]
[1769407268890,0.0011254,87859.0,87846.0,0.76783907]
[1769407269412,0.0001254,87859.0,87849.0,0.33423228]
[1769407269638,0.0001254,87859.0,87851.0,0.76783907]
[1769407269841,0.0011254,87859.0,87851.0,0.76783907]
[1769407270212,0.0001254,87859.0,87851.0,0.76783907]
[1769407270615,0.0011254,87859.0,87851.0,0.76783907]
[1769407270999,0.0001254,87859.0,87851.0,0.76783907]
[1769407271418,0.0011254,87859.0,87851.0,0.76783907]
[1769407271877,0.0011254,87859.0,87834.0,0.01138511]
[1769407272075,0.0011254,87859.0,87838.0,0.33423228]
[1769407272276,0.0011254,87859.0,87841.0,0.76783907]